[Event "EYCC Girls U16 2018"]
[Site "Riga"]
[Date "2018.08.24"]
[Round "5"]
[White "Nestorovic, Katarina"]
[Black "Kucharska, Honorata"]
[Result "1/2-1/2"]
[ECO "C13"]
[WhiteElo "1995"]
[BlackElo "2030"]
[Annotator "NA"]
[PlyCount "70"]
[EventDate "2018.08.20"]
[EventType "swiss"]
[EventCountry "LAT"]
[SourceTitle "playchess.com"]
[Source "ChessBase"]
[SourceQuality "1"]
[TimeControl "40/5400+30:1800+30"]

1. e4 {[%emt 0:00:00]} e6 {[%emt 0:00:00]} 2. d4 {[%emt 0:00:00]} d5 {[%emt 0:00:00]} 3. Nc3 {[%emt 0:00:18]} Nf6 {[%emt 0:00:00]} 4. Bg5 {[%emt 0:00:48]} Be7 {[%emt 0:00:01]} 5. e5 {[%emt 0:00:36]} Nfd7 {[%emt 0:00:18]} 6. h4 {[%emt 0:01:14]} h6 {[%emt 0:00:34]} 7. Bxe7 {[%emt 0:00:40]} Qxe7 {[%emt 0:00:16]} 8. Qd2 {[%emt 0:01:52]} O-O {[%emt 0:02:17]} 9. O-O-O {[%emt 0:01:46]} c5 {[%emt 0:01:49]} 10. f4 {[%emt 0:05:02]} f6 {[%emt 0:05:38]} 11. exf6 {[%emt 0:04:49]} Qxf6 {[%emt 0:01:16]} 12. Nh3 {[%emt 0:07:38]} Nc6 {[%emt 0:05:22]} 13. dxc5 {[%emt 0:05:06]} Nxc5 {[%emt 0:01:03]} 14. g4 {[%emt 0:01:52]} d4 {[%emt 0:10:25]} ({Finger weg von} 14... Qxh4 15. Qg2 $15) 15. Nb5 $16 {[%emt 0:03:56]} e5 {[%emt 0:02:47]} 16. Bc4+ {[%emt 0:15:43]} Be6 {[%emt 0:07:32]} 17. g5 {[%emt 0:00:47]} Qf7 {[%emt 0:01:35]} 18. Bxe6 {[%emt 0:17:11]} Qxe6 {[%emt 0:00:21]} 19. Kb1 {[%emt 0:01:05]} Rad8 {[%emt 0:08:05]} 20. fxe5 {[%emt 0:05:19]} d3 {[%emt 0:05:38]} 21. c3 {[%emt 0:08:19]} Nxe5 {[%emt 0:03:30]} 22. Qe3 {[%emt 0:05:26]} Ncd7 {[%emt 0:09:56]} 23. Nd4 {[%emt 0:01:10]} Qb6 {[%emt 0:02:47]} 24. gxh6 {[%emt 0:01:58]} gxh6 {[%emt 0:05:56]} 25. Nf4 {[%emt 0:01:14]} Qxb2+ {[%emt 0:03:11]} 26. Kxb2 {[%emt 0:00:23]} Nc4+ {[%emt 0:00:02]} 27. Kb1 {[%emt 0:00:38]} Nxe3 {[%emt 0:00:05]} 28. Rxd3 {[%emt 0:01:12]} Nc5 {[%emt 0:01:54]} 29. Rg1+ {[%emt 0:01:34]} Kh7 {[%emt 0:00:27]} 30. Rxe3 {[%emt 0:00:59]} Rxf4 {[%emt 0:00:05]} 31. Re7+ {[%emt 0:02:40]} Kh8 {[%emt 0:00:16]} 32. Rgg7 {[%emt 0:02:34]} Rf2 {[%emt 0:07:25]} 33. Rh7+ {[%emt 0:00:45]} Kg8 {[%emt 0:00:03]} 34. Rxh6 {[%emt 0:00:55]} Na4 {[%emt 0:01:32]} 35. Rc7 {[%emt 0:01:03]} Nxc3+ {[%emt 0:00:30]} 1/2-1/2

[Event "EYCC Girls U16 2018"]
[Site "Riga"]
[Date "2018.08.24"]
[Round "5"]
[White "Sibajeva, Marija"]
[Black "Ferkova, Dominika"]
[Result "1/2-1/2"]
[ECO "B18"]
[WhiteElo "1941"]
[BlackElo "2180"]
[Annotator "NA"]
[PlyCount "82"]
[EventDate "2018.08.20"]
[EventType "swiss"]
[EventCountry "LAT"]
[SourceTitle "playchess.com"]
[Source "ChessBase"]
[SourceQuality "1"]
[TimeControl "40/5400+30:1800+30"]

1. e4 {[%emt 0:00:00]} c6 {[%emt 0:00:00]} 2. d4 {[%emt 0:00:00]} d5 {[%emt 0:00:00]} 3. Nc3 {[%emt 0:00:00]} dxe4 {[%emt 0:00:00]} 4. Nxe4 {[%emt 0:00:00]} Bf5 {[%emt 0:00:00]} 5. Ng3 {[%emt 0:00:00]} Bg6 {[%emt 0:00:00]} 6. Nh3 {[%emt 0:00:00]} Nf6 {[%emt 0:00:33]} 7. Nf4 {[%emt 0:00:12]} e5 {[%emt 0:00:23]} 8. Nxg6 {[%emt 0:00:09]} hxg6 {[%emt 0:00:08]} 9. dxe5 {[%emt 0:00:06]} Qa5+ {[%emt 0:00:09]} 10. Bd2 {[%emt 0:00:06]} Qxe5+ {[%emt 0:00:07]} 11. Qe2 {[%emt 0:00:05]} Nbd7 {[%emt 0:00:18]} 12. O-O-O {[%emt 0:05:49]} O-O-O {[%emt 0:06:31]} 13. Qxe5 {[%emt 0:02:12]} Nxe5 {[%emt 0:00:02]} 14. h3 {[%emt 0:00:31]} Nd5 {[%emt 0:11:21]} 15. Be2 {[%emt 0:08:23]} f6 {[%emt 0:07:35]} 16. Rhe1 {[%emt 0:12:01]} Rh4 {[%emt 0:04:09]} 17. Bf1 $11 {[%emt 0:05:57]} Be7 {[%emt 0:25:00]} 18. Re4 {[%emt 0:06:28]} Rxe4 {[%emt 0:07:27]} 19. Nxe4 {[%emt 0:00:07]} f5 {[%emt 0:00:37]} 20. Nc3 {[%emt 0:04:09]} Nxc3 {[%emt 0:09:23]} 21. Bxc3 {[%emt 0:00:16]} Bg5+ {[%emt 0:00:15]} 22. Bd2 {[%emt 0:00:07]} Bf6 {[%emt 0:00:11]} 23. Bc3 {[%emt 0:06:53]} Bg5+ {[%emt 0:07:03]} 24. Bd2 {[%emt 0:00:06]} Rxd2 {[%emt 0:06:36]} 25. Rxd2 {[%emt 0:00:17]} Bxd2+ {[%emt 0:00:04]} 26. Kxd2 {[%emt 0:00:04]} Kd7 {[%emt 0:00:25]} 27. Ke3 {[%emt 0:01:55]} Ke7 {[%emt 0:01:04]} 28. Be2 {[%emt 0:01:09]} g5 {[%emt 0:00:59]} 29. g3 {[%emt 0:03:28]} b6 {[%emt 0:03:32]} 30. Bf1 {[%emt 0:05:12]} Ke6 {[%emt 0:02:21]} 31. Be2 {[%emt 0:02:50]} Ng6 {[%emt 0:00:25]} 32. Bf3 {[%emt 0:04:58]} Ne7 {[%emt 0:01:03]} 33. Kd4 {[%emt 0:02:01]} Kd6 {[%emt 0:00:23]} 34. Bg2 {[%emt 0:02:02]} Ng6 {[%emt 0:00:49]} 35. Bf3 {[%emt 0:01:41]} c5+ {[%emt 0:01:06]} 36. Ke3 {[%emt 0:01:00]} Ke5 {[%emt 0:00:28]} 37. Kd3 {[%emt 0:03:09]} Kd6 {[%emt 0:00:59]} 38. Ke3 {[%emt 0:00:39]} Ne5 {[%emt 0:00:35]} 39. Be2 {[%emt 0:00:16]} Ke6 {[%emt 0:01:26]} 40. Ba6 {[%emt 0:00:00]} g4 {[%emt 0:00:00]} 41. h4 {[%emt 0:04:15]} Kf6 {[%emt 0:08:18] Ke4} 1/2-1/2

[Event "EYCC Girls U16 2018"]
[Site "Riga"]
[Date "2018.08.26"]
[Round "6"]
[White "Antova, Gabriela"]
[Black "Urh, Zala"]
[Result "1/2-1/2"]
[ECO "D37"]
[WhiteElo "2293"]
[BlackElo "2156"]
[Annotator "NA"]
[PlyCount "94"]
[EventDate "2018.08.20"]
[EventType "swiss"]
[EventCountry "LAT"]
[SourceTitle "playchess.com"]
[Source "ChessBase"]
[SourceQuality "1"]
[TimeControl "40/5400+30:1800+30"]

1. d4 {[%emt 0:00:00]} Nf6 {[%emt 0:00:00]} 2. c4 {[%emt 0:00:00]} e6 {[%emt 0:00:00]} 3. Nf3 {[%emt 0:00:00]} d5 {[%emt 0:00:00]} 4. Nc3 {[%emt 0:00:00]} Nbd7 {[%emt 0:00:00]} 5. e3 {[%emt 0:09:19]} a6 {[%emt 0:00:10]} 6. b3 {[%emt 0:05:43] D37: Queen's Gambit Declined: 5 Bf4} b6 {[%emt 0:01:06]} 7. Bd3 {[%emt 0:01:37]} (7. Bb2 Bb7 8. Bd3 Bd6 9. O-O O-O 10. Re1 Ne4 11. a3 f5 12. b4 dxc4 13. Bxc4 Qe7 14. Nxe4 fxe4 15. Ne5 Bxe5 16. dxe5 Rf5 17. Ra2 b5 {0-1 (27) Timofeev,A (2583)-Khismatullin,D (2627) Yaroslavl 2018}) 7... Bb7 {[%emt 0:01:19]} 8. O-O {[%emt 0:00:58]} Bd6 {[%emt 0:01:16]} 9. Qe2 {[%emt 0:03:45]} O-O {[%emt 0:02:21]} 10. cxd5 {[%emt 0:08:00]} exd5 {[%emt 0:01:15]} 11. Bb2 {[%emt 0:00:09]} Re8 {[%emt 0:02:35]} 12. Rac1 {[%emt 0:03:14]} Ne4 {[%emt 0:03:16]} 13. Rfd1 {[%emt 0:03:54]} f5 $146 {[%emt 0:04:08]} ({Predecessor:} 13... Qf6 14. Nb1 Re6 15. Qc2 Qh6 16. Ne5 Ndf6 {0-1 (32) Miladinovic,L (2074)-Nestorovic,L (2428) Senta 2011}) 14. Qc2 {[%emt 0:09:48]} Qe7 {[%emt 0:08:41]} 15. a3 {[%emt 0:10:58]} Rf8 {[%emt 0:09:14]} 16. Ne2 {[%emt 0:04:47]} Rac8 {[%emt 0:06:31]} 17. b4 {[%emt 0:01:50]} g5 {[%emt 0:01:26]} 18. Qb3 {[%emt 0:07:52]} g4 {[%emt 0:06:06]} 19. Ne5 {[%emt 0:00:25]} Nxe5 {[%emt 0:02:36]} 20. dxe5 {[%emt 0:00:09]} Bxe5 {[%emt 0:00:05]} 21. Bxe4 {[%emt 0:07:03]} fxe4 {[%emt 0:02:12]} 22. Bxe5 {[%emt 0:04:50]} Qxe5 {[%emt 0:00:07]} 23. a4 {[%emt 0:02:08]} Rf6 {[%emt 0:06:43]} 24. Rd2 {[%emt 0:01:35]} h5 {[%emt 0:07:19]} 25. Rcd1 {[%emt 0:01:41]} Rd8 {[%emt 0:01:30]} 26. b5 {[%emt 0:03:10]} a5 {[%emt 0:04:48]} 27. Rd4 {[%emt 0:05:54]} Rfd6 {[%emt 0:01:01]} 28. Nf4 {[%emt 0:00:38]} R8d7 {[%emt 0:06:05]} 29. Qc2 {[%emt 0:01:06]} Kg7 {[%emt 0:03:07]} 30. Qe2 {[%emt 0:00:22]} Kh6 {[%emt 0:00:47]} 31. g3 {[%emt 0:00:54]} Rd8 {[%emt 0:01:53]} 32. Kg2 {[%emt 0:00:32]} Qg5 {[%emt 0:03:41]} 33. Qc2 {[%emt 0:01:56]} Qe7 {[%emt 0:01:51]} 34. Qe2 {[%emt 0:00:41]} Qg5 {[%emt 0:00:21]} 35. Rc1 {[%emt 0:00:11]} R8d7 {[%emt 0:01:15]} 36. Rh1 {[%emt 0:00:48]} Rf7 {[%emt 0:01:44]} 37. Rhd1 {[%emt 0:01:28]} Rfd7 {[%emt 0:00:16]} 38. Qd2 {[%emt 0:00:33]} Rd8 {[%emt 0:01:06]} 39. Rc1 {[%emt 0:00:26]} R8d7 {[%emt 0:01:11]} 40. Rh1 {[%emt 0:00:00]} Rd8 {[%emt 0:00:00]} 41. Qc1 {[%emt 0:10:47]} Qe7 {[%emt 0:05:32]} 42. Qd1 {[%emt 0:04:39]} Qg5 {[%emt 0:01:21]} 43. Qb3 {[%emt 0:03:27]} Qe5 $11 {[%emt 0:02:05]} 44. Qc2 {[%emt 0:02:09]} Qe7 {[%emt 0:01:52]} 45. Qd1 {[%emt 0:04:30]} Qg5 {[%emt 0:00:25]} 46. Qc2 {[%emt 0:00:22]} Qe7 {[%emt 0:00:10]} 47. Qd1 {[%emt 0:01:22]} Qg5 {[%emt 0:00:14]} 1/2-1/2

[Event "EYCC Girls U16 2018"]
[Site "Riga"]
[Date "2018.08.26"]
[Round "6"]
[White "Goltseva, Ekaterina"]
[Black "Rudzinska, Michalina"]
[Result "0-1"]
[ECO "A79"]
[WhiteElo "2185"]
[BlackElo "2003"]
[Annotator "NA"]
[PlyCount "90"]
[EventDate "2018.08.20"]
[EventType "swiss"]
[EventCountry "LAT"]
[SourceTitle "playchess.com"]
[Source "ChessBase"]
[SourceQuality "1"]
[TimeControl "40/5400+30:1800+30"]

1. d4 {[%emt 0:00:00]} Nf6 {[%emt 0:00:00]} 2. c4 {[%emt 0:00:00]} e6 {[%emt 0:00:00]} 3. Nc3 {[%emt 0:00:00]} c5 {[%emt 0:00:00]} 4. d5 {[%emt 0:00:00]} exd5 {[%emt 0:00:00]} 5. cxd5 {[%emt 0:00:00]} d6 {[%emt 0:00:05]} 6. Nf3 {[%emt 0:00:11]} g6 {[%emt 0:00:08]} 7. Nd2 {[%emt 0:00:10]} Bg7 {[%emt 0:00:12]} 8. e4 {[%emt 0:00:07]} O-O {[%emt 0:00:09]} 9. Be2 {[%emt 0:00:09]} Re8 {[%emt 0:00:25]} 10. O-O {[%emt 0:00:25]} Na6 {[%emt 0:00:22]} 11. f3 {[%emt 0:00:42]} Nc7 {[%emt 0:00:19]} 12. a4 {[%emt 0:00:15]} b6 {[%emt 0:00:12]} 13. Kh1 {[%emt 0:00:26]} Rb8 {[%emt 0:00:47]} 14. Nc4 {[%emt 0:00:47]} Ba6 {[%emt 0:00:27]} 15. Bg5 {[%emt 0:01:04]} h6 {[%emt 0:00:25]} 16. Be3 {[%emt 0:01:49]} Qe7 {[%emt 0:06:53]} 17. Qd2 {[%emt 0:01:10]} Kh7 {[%emt 0:00:10]} 18. b3 {[%emt 0:12:15]} Nd7 {[%emt 0:03:41]} 19. Rfe1 {[%emt 0:01:37]} Ne5 {[%emt 0:07:10]} 20. f4 {[%emt 0:23:00]} Nxc4 {[%emt 0:03:33]} 21. bxc4 {[%emt 0:06:35]} Qf8 {[%emt 0:05:07]} 22. Bd3 {[%emt 0:03:53]} Bc8 {[%emt 0:03:40]} 23. Qc2 {[%emt 0:07:01]} Na6 {[%emt 0:03:08]} 24. Na2 {[%emt 0:18:33]} Bxa1 {[%emt 0:03:18]} 25. Rxa1 {[%emt 0:00:03]} Rb7 {[%emt 0:13:57]} 26. f5 {[%emt 0:06:52]} Bxf5 {[%emt 0:10:05]} 27. Rf1 {[%emt 0:05:19]} Bc8 {[%emt 0:11:05]} 28. e5 {[%emt 0:03:33]} Qg7 {[%emt 0:01:38]} 29. e6 {[%emt 0:04:54]} fxe6 {[%emt 0:00:35]} 30. dxe6 {[%emt 0:00:06]} Rxe6 {[%emt 0:02:21]} 31. Qf2 {[%emt 0:02:58]} Rbe7 {[%emt 0:03:29]} 32. Bd2 {[%emt 0:00:22]} Bd7 {[%emt 0:06:25]} 33. Qh4 {[%emt 0:01:37]} Nb4 {[%emt 0:10:00]} 34. Nxb4 {[%emt 0:00:34]} cxb4 {[%emt 0:00:05]} 35. Bxb4 {[%emt 0:00:28]} Rf7 {[%emt 0:00:57]} 36. Rxf7 {[%emt 0:00:28]} Qxf7 {[%emt 0:00:05]} 37. Bc3 {[%emt 0:00:31]} Re8 {[%emt 0:03:20]} 38. h3 {[%emt 0:00:29]} Bf5 {[%emt 0:02:27]} 39. Qd4 {[%emt 0:00:34]} Bxd3 {[%emt 0:00:19]} 40. Qxd3 {[%emt 0:00:00]} Rf8 {[%emt 0:00:00]} 41. Kg1 {[%emt 0:13:30]} Qf2+ {[%emt 0:02:24]} 42. Kh2 {[%emt 0:03:36]} Qf1 {[%emt 0:00:09]} 43. Qc2 {[%emt 0:02:00]} Qxc4 {[%emt 0:00:47]} 44. Qb2 {[%emt 0:01:18]} Qf4+ {[%emt 0:00:34]} 45. Kh1 {[%emt 0:00:21]} Qf1+ {[%emt 0:00:08]} 0-1

[Event "EYCC Girls U16 2018"]
[Site "Riga"]
[Date "2018.08.26"]
[Round "6"]
[White "Ferkova, Dominika"]
[Black "Nestorovic, Katarina"]
[Result "0-1"]
[ECO "E48"]
[WhiteElo "2180"]
[BlackElo "1995"]
[Annotator "NA"]
[PlyCount "92"]
[EventDate "2018.08.20"]
[EventType "swiss"]
[EventCountry "LAT"]
[SourceTitle "playchess.com"]
[Source "ChessBase"]
[SourceQuality "1"]
[TimeControl "40/5400+30:1800+30"]

1. d4 {[%emt 0:00:00]} Nf6 {[%emt 0:00:00]} 2. c4 {[%emt 0:00:00]} e6 {[%emt 0:00:00]} 3. Nc3 {[%emt 0:00:00]} Bb4 {[%emt 0:00:00]} 4. e3 {[%emt 0:00:00]} O-O {[%emt 0:00:13]} 5. Bd3 {[%emt 0:00:07]} d5 {[%emt 0:06:39]} 6. Nf3 {[%emt 0:00:24]} c6 {[%emt 0:04:33]} 7. O-O {[%emt 0:01:34]} Re8 {[%emt 0:01:27]} 8. Ne5 {[%emt 0:05:33]} Nbd7 {[%emt 0:05:19]} 9. f4 {[%emt 0:03:13]} dxc4 {[%emt 0:09:43]} 10. Bxc4 {[%emt 0:02:04]} Nd5 $14 {[%emt 0:04:49]} 11. Bd3 {[%emt 0:07:59]} f5 {[%emt 0:17:04]} 12. Nxd5 {[%emt 0:03:33]} cxd5 {[%emt 0:01:24]} 13. g4 {[%emt 0:09:27]} Nxe5 {[%emt 0:04:48]} 14. fxe5 {[%emt 0:01:43]} Rf8 {[%emt 0:04:08]} 15. gxf5 {[%emt 0:01:22]} exf5 {[%emt 0:00:33]} 16. Kh1 {[%emt 0:06:22]} Be6 {[%emt 0:02:02]} 17. Qh5 {[%emt 0:03:19]} Qd7 {[%emt 0:07:21]} 18. a3 {[%emt 0:02:32]} Be7 {[%emt 0:02:35]} 19. Bd2 {[%emt 0:01:53]} Kh8 {[%emt 0:02:57]} 20. Rf3 {[%emt 0:04:24]} g6 {[%emt 0:01:57]} 21. Qh6 {[%emt 0:00:23]} Rg8 {[%emt 0:00:47]} 22. Rg1 {[%emt 0:01:53]} Bf8 {[%emt 0:02:24]} 23. Qf4 {[%emt 0:00:34]} Rc8 {[%emt 0:01:17]} 24. h4 {[%emt 0:12:20]} h5 {[%emt 0:13:02]} 25. Rfg3 {[%emt 0:02:59]} Kh7 {[%emt 0:00:33]} 26. Qf3 {[%emt 0:09:29]} Bh6 {[%emt 0:00:40]} 27. Bb4 {[%emt 0:00:59]} Qd8 {[%emt 0:00:34]} 28. Rh3 {[%emt 0:00:48]} a5 {[%emt 0:02:03]} 29. Bd6 {[%emt 0:02:27]} Qb6 {[%emt 0:00:34]} 30. Qe2 {[%emt 0:04:06]} Qb3 {[%emt 0:02:17]} 31. Rhg3 {[%emt 0:01:29]} Qb6 {[%emt 0:01:15]} 32. Be7 {[%emt 0:01:05]} Rc6 {[%emt 0:02:26]} 33. Qg2 {[%emt 0:02:42]} Qc7 {[%emt 0:00:35]} 34. Rxg6 {[%emt 0:01:36]} Qxe7 {[%emt 0:00:22]} 35. Qg3 {[%emt 0:02:13]} Qf7 {[%emt 0:00:36]} 36. Rxg8 {[%emt 0:03:14]} Qxg8 {[%emt 0:00:01]} 37. Bxf5+ {[%emt 0:00:10]} Kh8 {[%emt 0:00:01]} 38. Bg6 {[%emt 0:02:02]} Bf7 {[%emt 0:00:50]} 39. Bxf7 {[%emt 0:01:19]} Qxf7 {[%emt 0:00:06]} 40. Qh3 {[%emt 0:00:00]} Qh7 {[%emt 0:00:00]} 41. Qf3 {[%emt 0:03:23]} Qd7 {[%emt 0:08:39]} 42. Rg2 {[%emt 0:02:56]} b5 {[%emt 0:03:46]} 43. Kh2 {[%emt 0:00:36]} Qe8 {[%emt 0:04:48]} 44. Re2 {[%emt 0:03:25]} Rg6 {[%emt 0:04:10]} 45. Qxd5 {[%emt 0:04:49]} Rg4 {[%emt 0:00:19]} 46. Kh3 {[%emt 0:00:10]} Qe7 {[%emt 0:01:03]} 0-1

[Event "EYCC Girls U16 2018"]
[Site "Riga"]
[Date "2018.08.26"]
[Round "6"]
[White "Schneider, Jana"]
[Black "Shpanko, Nadiia"]
[Result "1/2-1/2"]
[ECO "B51"]
[WhiteElo "2179"]
[BlackElo "2176"]
[Annotator "NA"]
[PlyCount "120"]
[EventDate "2018.08.20"]
[EventType "swiss"]
[EventCountry "LAT"]
[SourceTitle "playchess.com"]
[Source "ChessBase"]
[SourceQuality "1"]
[TimeControl "40/5400+30:1800+30"]

1. e4 {[%emt 0:00:00]} c5 {[%emt 0:00:00]} 2. Nf3 {[%emt 0:00:00]} d6 {[%emt 0:00:00]} 3. Bb5+ {[%emt 0:00:00]} Nd7 {[%emt 0:00:00]} 4. d4 {[%emt 0:00:00]} cxd4 {[%emt 0:00:09]} 5. Qxd4 {[%emt 0:00:11]} Ngf6 {[%emt 0:01:27]} 6. Bg5 {[%emt 0:01:14]} e5 {[%emt 0:02:33]} 7. Qe3 {[%emt 0:03:46]} Be7 {[%emt 0:01:27]} 8. Bxf6 {[%emt 0:01:48]} Bxf6 {[%emt 0:00:08]} 9. Nc3 {[%emt 0:01:52]} O-O {[%emt 0:01:35]} 10. Bxd7 {[%emt 0:05:08]} Bxd7 {[%emt 0:01:03]} 11. O-O-O {[%emt 0:04:03]} Qa5 {[%emt 0:08:08]} 12. Rxd6 {[%emt 0:13:07]} Be6 {[%emt 0:00:18]} 13. Kb1 {[%emt 0:01:02]} Be7 {[%emt 0:02:22]} 14. Rdd1 {[%emt 0:02:28]} Bc5 {[%emt 0:00:35]} 15. Qe2 {[%emt 0:01:40]} Rfd8 {[%emt 0:12:08]} 16. Nxe5 {[%emt 0:09:29]} Bd4 {[%emt 0:11:24]} 17. Nc4 {[%emt 0:01:02]} Qc5 {[%emt 0:11:27]} 18. Nd5 {[%emt 0:01:44]} Bxd5 {[%emt 0:02:25]} 19. exd5 {[%emt 0:00:16]} Rxd5 {[%emt 0:00:14]} 20. f4 {[%emt 0:24:16]} Rc8 {[%emt 0:09:04]} 21. Ne5 {[%emt 0:02:47]} Bxe5 {[%emt 0:04:46]} 22. Rxd5 {[%emt 0:00:34]} Qxd5 {[%emt 0:00:04]} 23. fxe5 {[%emt 0:00:25]} Rd8 {[%emt 0:00:06]} 24. Rf1 {[%emt 0:04:47]} g6 {[%emt 0:03:59]} 25. b3 {[%emt 0:01:49]} Re8 {[%emt 0:02:07]} 26. Re1 {[%emt 0:01:10]} Re6 {[%emt 0:02:22]} 27. g4 {[%emt 0:06:14]} Qd8 {[%emt 0:03:35]} 28. Qf2 {[%emt 0:02:10]} b6 {[%emt 0:01:04]} 29. h4 {[%emt 0:00:50]} Qe7 {[%emt 0:02:44]} 30. h5 {[%emt 0:05:00]} Rxe5 {[%emt 0:05:04]} 31. Rxe5 {[%emt 0:00:10]} Qxe5 {[%emt 0:00:06]} 32. h6 {[%emt 0:00:11]} f6 {[%emt 0:01:10]} 33. Qf3 {[%emt 0:00:48]} Kf7 {[%emt 0:02:35]} 34. a4 {[%emt 0:00:27]} Qe1+ {[%emt 0:02:53]} 35. Kb2 {[%emt 0:00:33]} Qe5+ {[%emt 0:00:07]} 36. Ka2 {[%emt 0:00:53]} Ke6 {[%emt 0:04:05]} 37. Qb7 {[%emt 0:02:29]} Qc3 {[%emt 0:01:43]} 38. Kb1 {[%emt 0:00:43]} Qe1+ {[%emt 0:01:27]} 39. Kb2 {[%emt 0:00:06]} Qe5+ {[%emt 0:00:12]} 40. Ka2 {[%emt 0:00:00]} Qc3 {[%emt 0:00:00]} 41. Kb1 {[%emt 0:06:48]} Qe1+ {[%emt 0:02:34]} 42. Kb2 {[%emt 0:00:07]} Qe5+ {[%emt 0:00:07]} 43. c3 {[%emt 0:00:28]} Qh2+ {[%emt 0:00:51]} 44. Ka3 {[%emt 0:00:37]} Qxh6 {[%emt 0:13:17]} 45. Qxa7 {[%emt 0:01:28]} Qc1+ {[%emt 0:00:03]} 46. Kb4 {[%emt 0:00:43]} Qf4+ {[%emt 0:00:26]} 47. Kb5 {[%emt 0:02:00]} Qe5+ {[%emt 0:02:51]} 48. Kxb6 {[%emt 0:05:48]} Qe3+ {[%emt 0:12:07]} 49. Ka6 {[%emt 0:01:08]} Qxa7+ {[%emt 0:00:10]} 50. Kxa7 {[%emt 0:00:04]} h5 {[%emt 0:02:35]} 51. gxh5 {[%emt 0:00:06]} gxh5 {[%emt 0:00:02]} 52. b4 {[%emt 0:02:29]} h4 {[%emt 0:00:07]} 53. b5 {[%emt 0:00:05]} h3 {[%emt 0:00:02]} 54. b6 {[%emt 0:00:07]} h2 {[%emt 0:00:03]} 55. b7 {[%emt 0:00:04]} h1=Q {[%emt 0:00:04]} 56. b8=Q {[%emt 0:00:10]} Qc6 {[%emt 0:01:48]} 57. a5 {[%emt 0:09:09]} Kd7 {[%emt 0:01:35]} 58. a6 {[%emt 0:04:38]} Qc7+ {[%emt 0:00:59]} 59. Ka8 {[%emt 0:00:50]} Qc8 {[%emt 0:00:53]} 60. Ka7 {[%emt 0:00:42]} Qc7+ {[%emt 0:00:05]} 1/2-1/2

[Event "EYCC Girls U16 2018"]
[Site "Riga"]
[Date "2018.08.26"]
[Round "6"]
[White "Kucharska, Honorata"]
[Black "Peycheva, Gergana"]
[Result "1-0"]
[ECO "C00"]
[WhiteElo "2030"]
[BlackElo "2261"]
[Annotator "NA"]
[PlyCount "91"]
[EventDate "2018.08.20"]
[EventType "swiss"]
[EventCountry "LAT"]
[SourceTitle "playchess.com"]
[Source "ChessBase"]
[SourceQuality "1"]
[TimeControl "40/5400+30:1800+30"]

1. e4 {[%emt 0:00:00]} e6 {[%emt 0:00:00]} 2. d3 {[%emt 0:00:00]} d5 {[%emt 0:00:12]} 3. Nd2 {[%emt 0:00:03]} Nc6 {[%emt 0:00:54]} 4. Ngf3 {[%emt 0:03:08]} Nf6 {[%emt 0:01:43]} 5. Be2 {[%emt 0:02:12]} e5 {[%emt 0:04:41]} 6. O-O {[%emt 0:01:28]} Bd6 {[%emt 0:03:12]} 7. c3 {[%emt 0:02:28]} O-O {[%emt 0:00:33]} 8. b4 {[%emt 0:03:33]} a6 {[%emt 0:01:52]} 9. a3 {[%emt 0:03:45]} Ne7 {[%emt 0:03:58]} 10. c4 {[%emt 0:03:54]} c6 {[%emt 0:05:00]} 11. Qc2 {[%emt 0:12:03]} Ng6 {[%emt 0:04:24]} 12. Re1 $11 {[%emt 0:04:56]} Re8 {[%emt 0:04:00]} 13. Nf1 {[%emt 0:01:30]} Be6 {[%emt 0:06:53]} 14. Ng3 {[%emt 0:03:59]} a5 {[%emt 0:06:24]} 15. Rb1 {[%emt 0:04:59]} Qd7 {[%emt 0:03:46]} 16. Bg5 {[%emt 0:05:04]} Be7 {[%emt 0:04:55]} 17. Qb2 {[%emt 0:05:51]} d4 {[%emt 0:03:44]} 18. b5 {[%emt 0:13:44]} h6 {[%emt 0:05:35]} 19. Bd2 {[%emt 0:01:33]} c5 {[%emt 0:02:16]} 20. Qc1 {[%emt 0:02:55]} Kh7 {[%emt 0:03:06]} 21. Rf1 {[%emt 0:02:00]} Rf8 {[%emt 0:04:29]} 22. Ne1 {[%emt 0:05:07]} Ne8 {[%emt 0:01:44]} 23. f4 {[%emt 0:01:26]} exf4 {[%emt 0:02:00]} 24. Bxf4 {[%emt 0:00:04]} Nxf4 {[%emt 0:00:08]} 25. Qxf4 {[%emt 0:00:04]} Bg5 {[%emt 0:02:19]} 26. Qf3 {[%emt 0:00:05]} Nd6 {[%emt 0:02:51]} 27. e5 {[%emt 0:02:10]} Nc8 {[%emt 0:01:32]} 28. Ne4 {[%emt 0:00:53]} Be7 {[%emt 0:03:12]} 29. Qg3 {[%emt 0:02:12]} Qd8 {[%emt 0:02:00]} 30. Bg4 {[%emt 0:01:12]} Nb6 {[%emt 0:02:35]} 31. Nf3 {[%emt 0:01:23]} Nd7 {[%emt 0:01:30]} 32. Bxe6 {[%emt 0:00:28]} fxe6 {[%emt 0:00:02]} 33. Qh3 {[%emt 0:00:30]} Rf5 {[%emt 0:01:37]} 34. Ng3 {[%emt 0:00:08]} Rxf3 {[%emt 0:04:16]} 35. gxf3 {[%emt 0:00:33]} Nxe5 {[%emt 0:01:02]} 36. Qxe6 {[%emt 0:00:12]} Ng6 {[%emt 0:00:37]} 37. f4 {[%emt 0:01:11]} Bd6 {[%emt 0:01:36]} 38. Qe4 {[%emt 0:03:48]} Qf6 {[%emt 0:02:34]} 39. Nf5 {[%emt 0:01:37]} Bxf4 {[%emt 0:01:42]} 40. Rxf4 {[%emt 0:00:00]} Nxf4 {[%emt 0:00:00]} 41. Qxf4 {[%emt 0:00:30]} Rf8 {[%emt 0:01:17]} 42. Rf1 {[%emt 0:00:28]} Qg6+ {[%emt 0:00:55]} 43. Kh1 {[%emt 0:00:07]} Rf6 {[%emt 0:03:35]} 44. Qe4 {[%emt 0:00:29]} Kh8 {[%emt 0:01:26]} 45. Ng3 {[%emt 0:00:34]} Qxe4+ {[%emt 0:00:59]} 46. dxe4 {[%emt 0:00:05]} 1-0